bitfinex-derivatives/quotes_SOLF0:USTF0_20250606
["timestamp","ask_amount","ask_price","bid_price","bid_amount"]
[1749183892464,0.04351813,146.72,146.7,6.8131]
[1749183892766,4.9603711,146.72,146.7,6.8131]
[1749183892963,0.04351813,146.72,146.7,6.8131]
[1749183893664,0.04351813,146.72,146.71,6.8128]
[1749183894064,0.04351813,146.72,146.68,4.88085526]
[1749183894259,0.04351813,146.72,146.67,9.59]
[1749183894466,0.04351813,146.72,146.68,4.88085526]
[1749183895158,0.04351813,146.72,146.67,9.59]
[1749183895362,0.04351813,146.72,146.68,4.88085526]
[1749183896465,0.04351813,146.72,146.71,6.8128]
[1749183898168,0.04351813,146.72,146.71,11.69365526]
[1749183898366,1.813e-05,146.72,146.71,11.69365526]
[1749183898565,50.0,146.75,146.71,4.88085526]
[1749183899369,4.91295525,146.74,146.72,6.8124]
[1749183899569,0.04683136,146.74,146.72,0.04482507]
[1749183900071,0.04683136,146.74,146.73,6.8119]
[1749183900467,4.95978756,146.74,146.73,6.8119]
[1749183900968,0.04683136,146.74,146.73,6.8119]
[1749183901564,4.98008172,146.74,146.73,6.8119]
[1749183901970,4.98008155,146.74,146.73,6.8119]
[1749183902773,0.04683136,146.74,146.73,6.8119]
[1749183903279,4.98944329,146.74,146.73,6.8119]
[1749183903474,4.98944792,146.74,146.72,0.04482507]
[1749183903666,0.04683136,146.74,146.72,0.04482507]
[1749183904074,0.04683136,146.74,146.72,6.85712507]
[1749183906273,0.04683136,146.74,146.72,0.04482507]
[1749183906475,4.94236027,146.73,146.72,0.04482507]
[1749183906876,10.604797,146.73,146.72,0.04482507]
[1749183907072,0.04683136,146.74,146.72,0.04482507]
[1749183907278,10.61238917,146.73,146.72,0.04482507]
[1749183908177,10.61540847,146.73,146.72,0.04482507]
[1749183908377,0.04683136,146.74,146.72,0.04482507]
[1749183908580,4.94524442,146.73,146.72,0.04482507]
[1749183908879,0.04683136,146.74,146.73,6.8119]
[1749183909076,10.6594994,146.74,146.73,6.8119]
[1749183909276,4.99207254,146.74,146.73,6.8119]
[1749183909480,0.04683136,146.74,146.73,6.8119]
[1749183909678,3.136e-05,146.74,146.73,11.69275526]
[1749183911379,3.136e-05,146.74,146.73,6.8119]
[1749183916189,3.136e-05,146.74,146.73,11.69275526]
[1749183924492,3.136e-05,146.74,146.72,6.85702507]
[1749183924697,3.136e-05,146.74,146.72,0.04482507]
[1749183925597,3.136e-05,146.74,146.73,6.8119]
[1749183930809,3.136e-05,146.74,146.72,6.85702507]
[1749183931409,3.136e-05,146.74,146.72,0.04482507]
[1749183931606,4.95451896,146.73,146.72,0.04482507]
[1749183931800,3.136e-05,146.74,146.72,0.04482507]
[1749183932005,4.94918725,146.73,146.72,0.04482507]
[1749183932200,34.88003136,146.74,146.72,0.04482507]
[1749183932409,4.94919041,146.73,146.72,6.85712507]
[1749183932708,34.88003136,146.74,146.72,6.85712507]
[1749183932910,34.88003136,146.74,146.73,6.8119]
[1749183933209,39.8292134,146.74,146.73,6.8119]
[1749183933709,39.82920926,146.74,146.73,6.8119]
[1749183933907,34.88003136,146.74,146.72,6.85702507]
[1749183935513,34.88003136,146.74,146.72,0.04482507]
[1749183935805,5.67223646,146.73,146.72,0.04482507]
[1749183936012,10.55309172,146.73,146.71,9.58]
[1749183936207,10.62487552,146.72,146.66,4.88085526]
[1749183936407,4.95263906,146.71,146.68,6.8138]
[1749183936607,4.95263906,146.7,146.68,6.8138]
[1749183936800,4.88085526,146.73,146.68,6.8138]
[1749183937005,17.47403142,146.72,146.69,6.85842706]
[1749183937206,13.73541964,146.71,146.69,6.85842706]
[1749183937406,3.12150873,146.71,146.69,6.85842706]
[1749183937805,3.16912798,146.72,146.7,6.8131]
[1749183938009,4.94184154,146.71,146.7,6.8131]
[1749183938611,8.81078527,146.71,146.69,0.04472706]
[1749183938910,3.12150873,146.71,146.69,0.04472706]
[1749183939111,4.94310581,146.7,146.69,0.04472706]
[1749183939312,4.9431033,146.7,146.69,6.85822706]
[1749183939513,0.04761925,146.72,146.69,6.85822706]
[1749183939710,10.63143883,146.71,146.69,6.85822706]
[1749183939912,4.94310204,146.7,146.69,6.85822706]
[1749183940114,0.04761925,146.72,146.69,6.85822706]
[1749183940315,0.04761925,146.72,146.7,6.8133]
[1749183943119,0.04761925,146.72,146.69,0.04472706]
[1749183944718,54.91057869,146.75,146.74,6.8114]
[1749183944919,50.0,146.75,146.74,6.8114]
[1749183946115,50.0,146.75,146.73,6.85766135]
[1749183950025,50.0,146.75,146.74,6.8114]
[1749183951122,50.0,146.75,146.73,6.85766135]
[1749183952417,50.0,146.75,146.73,0.04596135]
[1749183953015,50.0,146.75,146.73,6.85756135]
[1749183953922,50.0,146.75,146.74,6.8114]
[1749183958522,54.95909945,146.75,146.74,6.8114]
[1749183958927,54.95910113,146.75,146.73,6.85766135]
[1749183959130,50.0,146.75,146.73,6.85766135]
[1749183959826,50.0,146.75,146.74,6.8114]
[1749183967327,39.2214,146.8,146.73,4.92286783]
[1749183967528,4.967682,146.79,146.77,4.87690648]
[1749183967732,34.84,146.83,146.79,4.87690648]
[1749183967733,4.96854168,146.82,146.79,4.87690648]
[1749183967924,34.84,146.83,146.82,6.8077]
[1749183968129,2.1847,146.85,146.81,4.87690648]
[1749183968332,10.43609393,146.84,146.82,0.05169102]
[1749183968632,0.04692159,146.84,146.83,6.8072]
[1749183972932,0.04692159,146.84,146.83,11.68410648]
[1749183973230,36.9491,146.89,146.83,4.87690648]
[1749183974132,0.04962538,146.87,146.85,0.04621879]
[1749183974436,6.85522538,146.87,146.85,0.04621879]
[1749183974640,0.04962538,146.87,146.85,0.04621879]
[1749183975034,6.85512538,146.87,146.85,0.04621879]
[1749183975235,0.04962538,146.87,146.8,39.69690648]
[1749183975538,2.184,146.86,146.8,4.87690648]
[1749183975737,34.82,146.85,146.82,6.8074]
[1749183976325,41.67548923,146.85,146.82,0.05164235]
[1749183976735,34.86878923,146.85,146.82,0.05164235]
[1749183977236,34.86878923,146.85,146.82,6.85904235]
[1749183977637,34.86878923,146.85,146.82,0.05164235]
[1749183978138,41.67518923,146.85,146.82,6.85934235]
[1749183978436,34.86878923,146.85,146.82,6.85934235]
[1749183978937,34.86878923,146.85,146.82,0.05164235]
[1749183979436,41.67528923,146.85,146.82,0.05164235]
[1749183980230,41.67528923,146.85,146.82,6.85924235]
[1749183980542,34.86878923,146.85,146.82,0.05164235]
[1749183982536,6.8068,146.84,146.82,0.05164235]
[1749183982732,34.86878923,146.85,146.82,0.05164235]
[1749183982936,34.86878923,146.85,146.82,6.85934235]
[1749183983839,41.67528923,146.85,146.82,6.85934235]
[1749183984039,34.86878923,146.85,146.82,0.05164235]
[1749183984439,6.8071,146.84,146.82,0.05164235]
[1749183985241,6.8073,146.83,146.82,0.05164235]
[1749183985442,9.0289,146.83,146.82,0.05164235]
[1749183985740,2.2216,146.83,146.77,4.87690648]
[1749183985938,6.808,146.82,146.79,6.809]
[1749183986139,34.78,146.81,146.79,6.809]
[1749183986533,34.82952189,146.81,146.79,6.86057073]
[1749183992243,34.82952189,146.81,146.8,6.8086]
[1749183992639,0.04952189,146.81,146.8,6.8086]
[1749183993545,37.012,146.87,146.85,6.8061]
[1749183993840,2.232,146.87,146.85,6.8061]
[1749183994037,37.012,146.87,146.85,6.8061]
[1749183994643,37.06000402,146.87,146.85,0.04856282]
[1749183995341,6.8059,146.86,146.85,0.04856282]
[1749183995541,8.9274,146.86,146.81,4.87690648]
[1749183995940,8.9274,146.86,146.82,6.8077]
[1749183996342,6.8064,146.85,146.82,6.8077]
[1749183996541,6.8064,146.85,146.82,6.8572238]
[1749183998039,13.80430648,146.86,146.83,6.8072]
[1749183998239,19.48638007,146.86,146.83,6.8072]
[1749183998444,24.23223335,146.86,146.83,6.8072]
[1749183998646,6.8064,146.85,146.82,6.8570238]
[1749183999643,12.68290125,146.86,146.82,0.0495238]
[1749183999848,10.43250713,146.85,146.78,14.42690648]
[1749184000146,4.87690648,146.84,146.78,14.42690648]
[1749184000348,41.5876,146.83,146.79,6.809]
[1749184000745,41.5876,146.83,146.78,9.55]
[1749184000946,0.05112119,146.82,146.79,0.0468465]
[1749184001648,0.05112119,146.82,146.8,6.8086]
[1749184002348,0.05112119,146.82,146.79,6.8557465]
[1749184002544,6.8083,146.81,146.79,0.0468465]
[1749184003050,4.92802767,146.82,146.78,9.55]
[1749184003244,6.8089,146.8,146.78,9.55]
[1749184003442,34.78,146.79,146.78,9.55]
[1749184005248,34.78,146.79,146.78,16.3596]
[1749184005545,41.14037186,146.89,146.78,16.57381296]
[1749184005746,45.22534448,146.88,146.82,4.87690648]
[1749184005952,45.22534448,146.88,146.78,4.87690648]
[1749184005953,10.44534448,146.87,146.84,4.87690648]
[1749184006144,34.78,146.88,146.84,4.87690648]
[1749184006749,0.04344301,146.87,146.85,0.043254]
[1749184008546,4.72101628,146.86,146.85,0.043254]
[1749184009852,4.7210572,146.86,146.85,0.043254]
[1749184010045,6.84884301,146.87,146.85,0.043254]
[1749184010245,0.04344301,146.87,146.85,0.043254]
[1749184010849,0.04344301,146.87,146.86,6.8059]
[1749184012554,0.04344301,146.87,146.85,6.849454]
[1749184012956,0.04344301,146.87,146.85,0.043254]
[1749184013659,0.04344301,146.87,146.86,6.8059]
[1749184013855,4.8158139,146.87,146.86,6.8059]
[1749184014060,0.04344301,146.87,146.86,6.8059]
[1749184015550,0.04344301,146.87,146.86,11.68280648]
[1749184022358,2.1661,146.91,146.89,6.8043]
[1749184022555,34.74,146.92,146.89,6.8043]
[1749184022761,34.74,146.92,146.9,4.87690648]
[1749184022964,34.74,146.92,146.91,6.8035]
[1749184023164,34.74,146.92,146.9,4.87690648]
[1749184023469,34.78491866,146.92,146.9,11.73322427]
[1749184023962,34.78491866,146.92,146.9,6.85631779]
[1749184025158,34.78491866,146.92,146.91,6.8035]
[1749184026066,34.78491866,146.92,146.9,6.85641779]
[1749184028468,34.78491866,146.92,146.91,6.8035]
[1749184029066,0.04491866,146.92,146.91,11.68040648]
[1749184029262,34.72,146.95,146.91,4.87690648]
[1749184029467,36.9368,146.97,146.93,4.87690648]
[1749184029669,34.72,146.97,146.93,4.87690648]
[1749184030370,0.04635049,146.96,146.94,0.04930876]
[1749184030667,0.04635049,146.96,146.95,6.8017]
[1749184032670,0.04635049,146.96,146.94,6.85130876]
[1749184032970,0.04635049,146.96,146.94,11.72821524]
[1749184033173,0.04635049,146.96,146.94,4.92621524]
[1749184033370,0.04635049,146.96,146.94,0.04930876]
[1749184033875,6.84795049,146.96,146.94,0.04930876]
[1749184035466,0.04635049,146.96,146.94,0.04930876]
[1749184036472,6.84765049,146.96,146.94,0.04930876]
[1749184036875,0.04635049,146.96,146.94,0.04930876]
[1749184037078,6.8017,146.95,146.94,0.04930876]
[1749184042584,9.00445049,146.96,146.94,0.04930876]
[1749184043076,2.20305049,146.96,146.94,0.04930876]
[1749184043283,6.8017,146.95,146.94,0.04930876]
[1749184044187,0.04635049,146.96,146.94,0.04930876]
[1749184044582,0.04635049,146.96,146.94,4.90714704]
[1749184045783,0.04635049,146.96,146.95,6.8017]
[1749184046986,34.7,147.0,146.98,6.8001]
[1749184047183,34.7,147.0,146.93,49.05783828]
[1749184047378,34.68,147.03,146.98,4.85783828]
[1749184047591,34.68,147.03,147.0,4.85783828]
[1749184047888,34.68,147.03,147.0,11.65683828]
[1749184048089,34.73185919,147.03,147.0,11.70305823]
[1749184051193,41.52985919,147.03,147.0,0.04621995]
[1749184051888,6.7987,147.02,147.0,0.04621995]
[1749184053794,41.53005919,147.03,147.0,0.04621995]
[1749184054491,11.66115601,147.02,147.0,0.04621995]
[1749184054691,6.7984,147.02,147.0,0.04621995]
[1749184055994,6.7989,147.01,147.0,0.04621995]
[1749184056185,11.83569989,147.02,146.94,4.85783828]
[1749184056390,4.85783828,146.98,146.93,44.2]
[1749184056695,39.53783828,146.98,146.93,9.52]
[1749184057088,39.53783828,146.98,146.94,0.05104769]
[1749184057291,0.05145202,146.97,146.94,0.05104769]
[1749184057498,0.05145202,146.97,146.94,6.85284769]
[1749184058396,0.05145202,146.97,146.94,0.05104769]
[1749184058891,0.05145202,146.97,146.95,6.8016]
[1749184060297,0.05145202,146.97,146.96,6.8012]
[1749184061493,0.05145202,146.97,146.95,6.8014]
[1749184061894,0.05145202,146.97,146.94,0.05104769]
[1749184061895,0.05145202,146.97,146.94,4.90888597]
[1749184062392,0.05145202,146.97,146.96,6.8012]
[1749184063294,0.05145202,146.97,146.94,0.05104769]
[1749184063801,0.05145202,146.97,146.94,6.85284769]
[1749184064195,6.85225202,146.97,146.94,6.85284769]
[1749184064493,6.85225202,146.97,146.94,16.37284769]
[1749184065197,6.85225202,146.97,146.94,9.57104769]
[1749184065198,34.73145202,146.97,146.94,9.57104769]
[1749184065594,6.8015,146.96,146.94,9.57104769]
[1749184067102,41.53235202,146.97,146.94,9.57104769]
[1749184068098,41.53235202,146.97,146.94,16.37314769]
[1749184069296,41.53235202,146.97,146.94,9.57104769]
[1749184069502,34.73145202,146.97,146.94,9.57104769]
[1749184070599,4.85783828,146.96,146.94,9.57104769]
[1749184070806,15.42483488,146.95,146.85,41.78190083]
[1749184070993,6.8029,146.93,146.89,6.8041]
[1749184071197,4.86260083,146.92,146.85,41.78190083]
[1749184071498,34.68,146.93,146.87,4.86260083]
[1749184071692,34.68,146.93,146.89,0.04577769]
[1749184071893,0.04416518,146.91,146.89,0.04577769]
[1749184072103,0.04416518,146.91,146.9,6.804]
[1749184072904,0.04416518,146.91,146.89,6.85007769]
[1749184073707,0.04416518,146.91,146.9,6.804]
[1749184077003,2.18,146.98,146.94,6.8021]
[1749184077004,34.68,146.96,146.94,6.8021]
[1749184077201,34.68,146.96,146.91,4.86260083]
[1749184078105,0.04597106,146.95,146.94,6.8019]
[1749184080411,0.04597106,146.95,146.93,6.8024]
[1749184080610,0.04597106,146.95,146.92,0.04687375]
[1749184081006,0.04597106,146.95,146.93,6.8026]
[1749184081713,0.04597106,146.95,146.94,6.8021]
[1749184084817,0.04597106,146.95,146.93,11.66510083]
[1749184085115,0.04597106,146.95,146.92,0.04687375]
[1749184086016,4.90857189,146.95,146.92,0.04687375]
[1749184086213,11.64918908,146.94,146.92,0.04687375]
[1749184086415,6.8021,146.94,146.92,0.04687375]
[1749184088020,11.71037189,146.95,146.92,0.04687375]
[1749184088317,4.8581271,146.94,146.92,0.04687375]
[1749184088518,11.71037189,146.95,146.92,0.04687375]
[1749184088723,11.71037189,146.95,146.92,6.84987375]
[1749184088925,4.85812301,146.94,146.92,6.84987375]
[1749184089127,11.71037189,146.95,146.92,6.84987375]
[1749184089627,4.85684466,146.94,146.92,6.84987375]
[1749184089824,11.71037189,146.95,146.92,6.84987375]
[1749184090022,4.85684466,146.94,146.92,6.84987375]
[1749184090330,11.71037189,146.95,146.92,6.84987375]
[1749184090524,4.85684001,146.94,146.92,6.84987375]
[1749184090727,11.71037189,146.95,146.92,6.84987375]
[1749184090932,4.85684529,146.94,146.92,6.84987375]
[1749184091228,11.71037189,146.95,146.92,6.84987375]
[1749184091628,17.38817001,146.95,146.92,6.84987375]
[1749184091830,17.38812781,146.95,146.92,6.84987375]
[1749184092220,11.71037189,146.95,146.92,6.84987375]
[1749184092423,17.38802678,146.95,146.92,6.84987375]
[1749184092625,11.71037189,146.95,146.92,0.04687375]
[1749184093126,6.8021,146.94,146.92,0.04687375]
[1749184093932,11.71037189,146.95,146.92,0.04687375]
[1749184094527,4.90857189,146.95,146.92,6.84997375]
[1749184095429,6.84797106,146.95,146.92,6.84997375]
[1749184096531,0.04597106,146.95,146.92,6.84997375]
[1749184097327,6.84767106,146.95,146.92,6.84997375]
[1749184097628,0.04597106,146.95,146.93,6.8023]
[1749184097833,0.04597106,146.95,146.92,0.04687375]
[1749184098328,0.04597106,146.95,146.93,6.8023]
[1749184099834,6.84787106,146.95,146.92,0.04687375]
[1749184101735,6.84787106,146.95,146.92,6.84977375]
[1749184102639,0.04597106,146.95,146.92,0.04687375]
[1749184103135,0.04597106,146.95,146.93,6.8022]
[1749184106937,0.04597106,146.95,146.94,6.8021]
[1749184107139,0.04597106,146.95,146.92,0.04687375]
[1749184107338,4.84963662,146.94,146.92,0.04687375]
[1749184107632,0.04597106,146.95,146.92,0.04687375]
[1749184108028,4.84964417,146.94,146.92,0.04687375]
[1749184108228,0.04597106,146.95,146.92,0.04687375]
[1749184108438,4.85241144,146.94,146.92,0.04687375]
[1749184108637,0.04597106,146.95,146.92,0.04687375]
[1749184108941,6.8022,146.94,146.92,0.04687375]
[1749184109143,4.86260083,146.94,146.92,0.04687375]
[1749184109337,5.7130622,146.93,146.92,0.04687375]
[1749184109537,4.86260083,146.94,146.92,0.04687375]
[1749184109740,4.86260083,146.94,146.86,36.8824]
[1749184109741,10.56704478,146.93,146.86,41.74500083]
[1749184109939,52.03034478,146.92,146.86,7.06500083]
[1749184110134,4.85405495,146.91,146.86,7.06500083]
[1749184110434,34.66,146.92,146.86,7.06500083]
[1749184110735,0.04797573,146.9,146.88,4.90759957]
[1749184111536,0.04797573,146.9,146.89,6.8044]
[1749184126746,34.66,146.95,146.94,6.802]
[1749184126951,45.21654858,146.95,146.94,6.802]
[1749184127253,45.21654827,146.95,146.94,6.802]
[1749184127546,45.21654493,146.95,146.94,6.802]
[1749184128150,45.21654493,146.95,146.93,6.84562014]
[1749184128346,4.83459685,146.94,146.93,0.04322014]
[1749184128951,34.66,146.95,146.93,6.84532014]
[1749184129643,4.83334565,146.94,146.93,6.84532014]
[1749184129844,34.66,146.95,146.94,6.8021]
[1749184130044,0.05015935,146.96,146.93,4.90582097]
[1749184130741,0.05015935,146.96,146.95,6.8017]
[1749184131746,0.05015935,146.96,146.94,6.802]
[1749184132349,0.05015935,146.96,146.93,0.04322014]
[1749184132650,0.05015935,146.96,146.95,6.8017]
[1749184141449,34.64,147.01,146.94,4.86260083]
[1749184141650,34.64,147.01,146.97,4.86260083]
[1749184141850,4.85241611,147.0,146.97,4.86260083]
[1749184142057,34.64,147.01,147.0,6.7994]
[1749184142258,45.20964147,147.01,147.0,6.7994]
[1749184142455,34.64,147.01,147.0,6.7994]
[1749184142648,0.04606967,147.02,147.01,6.7989]
[1749184143253,0.04606967,147.02,147.0,6.7992]
[1749184143553,0.04606967,147.02,146.99,4.91156381]
[1749184144654,0.04606967,147.02,147.01,6.7989]
[1749184149559,0.04606967,147.02,147.01,11.66150083]
[1749184154668,0.04606967,147.02,147.01,6.7989]
[1749184162776,0.04606967,147.02,147.01,11.66150083]
[1749184163369,0.04606967,147.02,147.01,6.7989]
[1749184163570,0.04606967,147.02,147.01,11.66150083]
[1749184168093,0.04606967,147.02,147.01,6.7989]
[1749184175389,0.04606967,147.02,147.01,9.90620456]
[1749184176186,6.967e-05,147.02,147.01,9.90620456]
[1749184178588,6.967e-05,147.02,147.01,6.7989]
[1749184178892,6.967e-05,147.02,147.0,9.90650456]
[1749184179192,6.967e-05,147.02,147.0,6.7992]
[1749184179588,6.967e-05,147.02,146.99,6.84856298]
[1749184180295,6.967e-05,147.02,147.0,6.7993]
[1749184182588,6.967e-05,147.02,147.01,6.7989]
[1749184183893,4.91066128,147.02,147.01,6.7989]
[1749184184088,4.91067026,147.02,147.01,6.7989]
[1749184184899,4.91080064,147.02,147.01,6.7989]
[1749184185196,6.967e-05,147.02,147.01,6.7989]
[1749184186800,6.967e-05,147.02,147.0,11.65476805]
[1749184187397,6.967e-05,147.02,147.01,6.7989]
[1749184187594,4.90643504,147.02,147.01,6.7989]
[1749184187795,4.90643159,147.02,147.01,6.7989]
[1749184187998,4.90706346,147.02,147.01,6.7989]
[1749184188199,6.967e-05,147.02,147.01,6.7989]
[1749184188599,4.90786318,147.02,147.01,6.7989]
[1749184188800,4.90786314,147.02,147.01,6.7989]
[1749184189096,4.90786659,147.02,147.01,6.7989]
[1749184189598,4.90877598,147.02,147.01,6.7989]
[1749184190003,4.90878288,147.02,147.01,6.7989]
[1749184190502,6.967e-05,147.02,147.01,6.7989]
[1749184190702,4.9087824,147.02,147.01,6.7989]
[1749184190903,4.9087824,147.02,147.0,11.65476805]
[1749184191097,6.967e-05,147.02,147.0,6.7992]
[1749184191297,4.9087302,147.01,146.99,0.04896298]
[1749184191498,6.967e-05,147.02,146.99,0.04896298]
[1749184191697,6.967e-05,147.02,146.99,6.84846298]
[1749184191898,4.90873379,147.01,146.99,6.84846298]
[1749184192099,4.90873379,147.0,146.99,6.84846298]
[1749184192403,6.967e-05,147.02,147.0,6.7993]
[1749184192605,4.90873035,147.01,147.0,6.7993]
[1749184193403,6.967e-05,147.02,147.01,6.7989]
[1749184193604,10.64322416,147.02,147.01,6.7989]
[1749184193797,5.73660587,147.02,147.01,6.7989]
[1749184194203,10.64223383,147.02,147.01,6.7989]
[1749184194899,4.90569763,147.02,147.01,6.7989]
[1749184195101,6.967e-05,147.02,147.01,6.7989]
[1749184198804,4.9009805,147.02,147.01,6.7989]
[1749184199003,6.967e-05,147.02,147.01,6.7989]
[1749184199207,4.90098053,147.02,147.01,6.7989]
[1749184200407,4.90023219,147.02,147.01,6.7989]
[1749184200607,6.967e-05,147.02,147.01,6.7989]
[1749184200805,4.90236708,147.02,147.01,6.7989]
[1749184201409,6.967e-05,147.02,147.01,6.7989]
[1749184201910,4.90344095,147.02,147.01,6.7989]
[1749184202110,6.967e-05,147.02,147.01,6.7989]
[1749184202810,4.90344326,147.02,147.01,6.7989]
[1749184203104,10.64055327,147.02,146.99,0.04896298]
[1749184203305,10.6404836,147.01,146.99,0.04896298]
[1749184203505,4.90337359,147.0,146.99,0.04896298]
[1749184203907,4.90378257,147.0,146.99,0.04896298]
[1749184204408,6.7991,147.01,146.99,0.04896298]
[1749184204603,4.8994738,147.0,146.99,6.84876298]
[1749184205310,6.967e-05,147.02,146.99,6.84876298]
[1749184205608,15.4918684,147.01,146.99,0.04896298]
[1749184205910,52.01433315,147.0,146.93,39.43716523]
[1749184206110,10.63473315,146.99,146.97,6.8005]
[1749184206311,4.89949434,146.98,146.93,39.43716523]
[1749184206504,36.8657,147.0,146.93,39.43716523]
[1749184206710,4.89403961,146.99,146.98,6.8]
[1749184207110,4.89050955,146.99,146.98,6.8]
[1749184207420,36.9101883,147.0,146.98,6.8]
[1749184207914,34.6244883,147.0,146.99,6.7998]
[1749184208107,39.51498323,147.0,146.99,6.7998]
[1749184208306,39.51498323,147.0,146.98,0.04586962]
[1749184208506,34.6244883,147.0,146.98,0.04586962]
[1749184208707,34.6244883,147.0,146.98,6.84596962]
[1749184209413,34.6244883,147.0,146.98,0.04586962]
[1749184209708,17.41724164,146.99,146.98,0.04586962]
[1749184209916,17.41712913,146.99,146.98,0.04586962]
[1749184210314,17.41712913,146.99,146.93,39.43716523]
[1749184210516,17.41762913,146.98,146.9,34.58]
[1749184210816,4.88758268,146.97,146.92,4.85716523]
[1749184211010,6.8003,146.98,146.92,4.85716523]
[1749184211211,0.04446695,146.96,146.94,0.04906354]
[1749184211412,0.04446695,146.96,146.95,6.8014]
[1749184214618,4.86185675,146.99,146.96,6.8009]
[1749184214819,6.7998,146.99,146.96,6.8009]
[1749184215617,6.84312268,146.99,146.96,6.84708979]
[1749184215821,6.84312268,146.99,146.96,0.04618979]
[1749184216022,6.8003,146.98,146.96,0.04618979]
[1749184216725,6.8007,146.97,146.96,0.04618979]
[1749184217020,6.8007,146.97,146.91,4.85716523]
[1749184217021,4.85945855,146.97,146.91,4.85716523]
[1749184217326,39.45716523,146.96,146.87,36.818]
[1749184217519,39.45716523,146.96,146.88,4.85716523]
[1749184217726,4.85835509,146.95,146.92,6.8028]
[1749184218021,0.04457715,146.95,146.92,6.84905749]
[1749184218221,0.04457715,146.95,146.93,6.8025]
[1749184218422,0.04457715,146.95,146.92,0.04625749]
[1749184218822,0.04457715,146.95,146.93,6.8026]
[1749184219223,0.04457715,146.95,146.92,0.04625749]
[1749184220020,0.04457715,146.95,146.94,6.8021]
[1749184221526,0.04457715,146.95,146.93,6.8024]
[1749184221720,0.04457715,146.95,146.92,0.04625749]
[1749184222227,0.04457715,146.95,146.93,6.8021]
[1749184222830,0.04457715,146.95,146.94,6.8021]
[1749184224128,0.04457715,146.95,146.93,6.8024]
[1749184224632,0.04457715,146.95,146.92,6.84915749]
[1749184225028,0.04457715,146.95,146.92,0.04625749]
[1749184225229,4.85716523,146.94,146.92,0.04625749]
[1749184226030,6.8026,146.93,146.92,0.04625749]
[1749184226325,4.85716523,146.94,146.89,6.8041]
[1749184226531,10.56611446,146.94,146.89,6.8041]
[1749184226724,4.85716523,146.94,146.89,6.8041]
[1749184227126,0.05016345,146.93,146.9,0.04810775]
[1749184227528,6.8034,146.92,146.9,0.04810775]
[1749184227927,41.4034,146.92,146.9,0.04810775]
[1749184228533,6.8035,146.91,146.9,0.04810775]
[1749184228736,39.45716523,146.92,146.84,41.72196523]
[1749184229335,6.8045,146.89,146.86,6.8056]
[1749184229638,6.8045,146.89,146.76,14.8053994]
[1749184229639,6.8045,146.89,146.82,4.85716523]
[1749184229835,0.04589825,146.87,146.84,0.04619336]
[1749184230034,0.04589825,146.87,146.84,6.85259336]
[1749184230738,0.04589825,146.87,146.85,4.85716523]
[1749184231440,0.04589825,146.87,146.86,6.8058]
[1749184231841,0.04589825,146.87,146.86,11.66296523]
[1749184232839,0.04589825,146.87,146.84,0.04619336]
[1749184232840,0.04589825,146.87,146.85,6.8063]
[1749184233233,0.04589825,146.87,146.86,6.8058]
[1749184233942,0.04589825,146.87,146.86,11.66296523]
[1749184235742,9.825e-05,146.87,146.86,11.66296523]
[1749184235944,34.58,146.92,146.91,6.8035]
[1749184236140,39.1583,146.95,146.9,4.85716523]
[1749184236340,39.1583,146.95,146.92,6.8028]
[1749184236842,39.20586241,146.95,146.92,6.85278937]
[1749184237433,34.62756241,146.95,146.92,0.04998937]
[1749184238037,34.62756241,146.95,146.93,6.8023]
[1749184239740,34.62756241,146.95,146.94,6.8021]
[1749184239941,0.04756241,146.95,146.94,6.8021]
[1749184251246,0.04756241,146.95,146.94,11.65926523]
[1749184253447,426.26,147.01,146.97,4.85716523]
[1749184254353,0.04478512,147.0,146.98,0.04344675]
[1749184255357,0.04478512,147.0,146.98,6.84374675]
[1749184257256,0.04478512,147.0,146.99,6.7998]
[1749184260664,8.512e-05,147.0,146.99,6.7998]
[1749184260857,34.56,147.04,147.03,6.798]
[1749184261061,36.7395,147.07,147.02,4.85716523]
[1749184261255,43.5358,147.07,147.02,4.85716523]
[1749184261461,43.5358,147.07,147.03,6.7978]
[1749184261958,0.0443377,147.06,147.04,0.04967314]
[1749184263359,0.0443377,147.06,147.04,6.84707314]
[1749184264269,6.8410377,147.06,147.04,0.04967314]
[1749184265159,0.0443377,147.06,147.04,0.04967314]
[1749184266367,0.0443377,147.06,147.04,6.84707314]
[1749184266567,0.0443377,147.06,147.04,0.04967314]
[1749184266757,0.0443377,147.06,147.05,6.797]
[1749184266958,129.62993568,147.1,147.04,4.90683837]
[1749184267160,43.5682,147.13,147.08,4.85716523]
[1749184267467,43.5682,147.13,147.09,6.7949]
[1749184267967,0.04407983,147.12,147.1,0.05237758]
[1749184268368,0.04407983,147.12,147.1,6.84697758]